fUSD/lending_fUSD_20240203
["ID","MTS","AMOUNT","RATE_DAILY","PERIOD"]
[313211798,1706955044429,-500.0,0.00022998,2]
[313211799,1706955044438,-979.78014217,0.00022999,2]
[313211800,1706955044451,-378110.11075822,0.00022999,2]
[313211801,1706955044460,-261.10499454,0.00022999,2]
[313211802,1706955044470,-332.27029723,0.00022999,2]
[313211803,1706955044480,-261.10499454,0.00022999,2]
[313211804,1706955044490,-332.27029723,0.00022999,2]
[313211805,1706955044499,-261.10499454,0.00022999,2]
[313211806,1706955044508,-332.27029723,0.00022999,2]
[313211807,1706955044518,-261.10499454,0.00022999,2]
[313211808,1706955044527,-332.27029723,0.00022999,2]
[313211809,1706955044536,-261.10499454,0.00022999,2]
[313211810,1706955044546,-332.27029723,0.00022999,2]
[313211811,1706955044555,-261.10499454,0.00022999,2]
[313211812,1706955044564,-332.27029723,0.00022999,2]
[313211813,1706955044573,-261.10499454,0.00022999,2]
[313211814,1706955044582,-332.27029723,0.00022999,2]
[313211815,1706955044690,-116695.78264395,0.00023,3]
[313211816,1706955044710,-2900.000003,0.00023,3]
[313211817,1706955044726,-436.800001,0.00023,3]
[313211818,1706955044738,-948.222,0.00023,3]
[313211819,1706955045118,-99666.2736098,0.00023,3]
[313211820,1706955045135,-567.06397,0.00023,3]
[313211821,1706955045148,-1339.8570791,0.00023,3]
[313211878,1706955049229,-1174.07546004,0.00023,3]
[313211879,1706955049242,-246455.63966443,0.00023,3]
[313211880,1706955049459,2443.0709947,0.00020696,2]
[313211881,1706955049499,-14908.11556261,0.00023,3]
[313211882,1706955049534,364.99703045,0.00021845,2]
[313211883,1706955049547,-811.88129537,0.00023,3]
[313211884,1706955049674,1100.85350938,0.00020696,2]
[313211885,1706955049794,1032.02849552,0.00021845,2]
[313211886,1706955051290,308.0680061,0.00021845,2]
[313211887,1706955055984,175.02808395,0.00021845,2]
[313211888,1706955056098,159.59977957,0.00021845,2]
[313211889,1706955059488,155.0,0.00021845,2]
[313211890,1706955063061,156.48433761,0.00021845,2]
[313211891,1706955069207,150.0,0.00022,2]
[313211892,1706955122083,2250.0,0.00022,3]
[313211893,1706955155988,154.99,0.00020206,2]
[313211894,1706955159375,174.22,0.00022104,2]
[313211895,1706955305540,561.25,0.00021992,2]
[313211896,1706955472026,182.7,0.00021973,2]
[313211897,1706955530057,235.64,0.00021973,2]
[313211898,1706955600487,174.22,0.00021976,2]
[313211899,1706955626932,154.99,0.00020047,2]
[313211900,1706955728823,551.0,0.00021965,2]
[313211901,1706955759873,1527.46998869,0.00022196,2]
[313211902,1706955787174,220093.7495,0.0002249,2]
[313211903,1706955824877,-338.23569729,0.00022586,2]
[313211904,1706955824899,-1024.76682902,0.00022587,2]
[313211905,1706955828423,19028.99747369,0.00022586,2]
[313211910,1706955910786,500.0,0.000219,2]
[313211911,1706955980895,182.2,0.00021976,2]
[313211913,1706956042603,174.22,0.00021967,2]
[313211915,1706956058412,154.99,0.00020049,2]
[313211916,1706956059418,2381.20445798,0.00022196,2]
[313211917,1706956140872,559.2,0.00021971,2]
[313211918,1706956209252,150.0,0.0002162,2]
[313211919,1706956209482,150.0,0.0002228,2]
[313211945,1706956232114,-902.18,0.00022584,2]
[313211949,1706956232165,-122.58682902,0.00022584,2]
[313211950,1706956232175,-338.23569729,0.00022584,2]
[313211951,1706956232185,-150.0,0.00022585,2]
[313211952,1706956232194,-150.0,0.00022585,2]
[313211953,1706956232203,-140138.55192231,0.00022586,2]
[313211954,1706956232213,-154.9053285,0.00022593,2]
[313211955,1706956232222,-806.00552617,0.000227,2]
[313211956,1706956232232,-3642.0,0.000227,2]
[313211957,1706956232241,-500.0,0.000227,2]
[313211958,1706956232250,-10029.6528,0.000227,2]
[313211959,1706956232259,-1000.0,0.00022716,2]
[313211960,1706956232270,-21220.0,0.000228,2]
[313211961,1706956232280,-500.0,0.00022815,2]
[313211962,1706956232291,-800.0,0.00022815,2]
[313211963,1706956232301,-800.0,0.00022815,2]
[313211964,1706956232310,-200.0,0.00022815,2]
[313211965,1706956232320,-500.0,0.00022816,2]
[313211966,1706956232329,-200.0,0.00022816,2]
[313211968,1706956232338,-800.0,0.00022816,2]
[313211970,1706956232348,-500.0,0.00022816,2]
[313211972,1706956232358,-500.0,0.00022816,2]
[313211974,1706956232368,-500.0,0.00022816,2]
[313211976,1706956232377,-200.0,0.00022816,2]
[313211978,1706956232386,-200.0,0.00022816,2]
[313211980,1706956232395,-200.0,0.00022816,2]
[313211982,1706956232404,-300.0,0.00022896,2]
[313211984,1706956232413,-256.83116427,0.00022896,2]
[313211986,1706956232422,-185.4762,0.00022897,2]
[313211988,1706956232432,-732.03,0.00022898,2]
[313211990,1706956232441,-806.00552617,0.000229,2]
[313211992,1706956232450,-216.13747036,0.000229,2]
[313211994,1706956232459,-5000.0,0.000229,2]
[313211996,1706956232469,-306.8041858,0.000229,2]
[313211998,1706956232478,-167.17063555,0.000229,2]
[313212000,1706956232490,-306.80418578,0.00022917,2]
[313212002,1706956232500,-167.17063553,0.00022917,2]
[313212003,1706956232510,-306.80418578,0.00022934,2]
[313212004,1706956232519,-167.17063553,0.00022934,2]
[313212005,1706956232530,-150.0,0.0002294,2]
[313212006,1706956232541,-582.81,0.00022994,2]
[313212007,1706956232553,-1036.93,0.00022994,2]
[313212008,1706956232563,-500.0,0.00022994,2]
[313212009,1706956232572,-500.0,0.00022994,2]
[313212010,1706956232583,-500.0,0.00022994,2]
[313212011,1706956232592,-769.88,0.00022994,2]
[313212012,1706956232603,-500.0,0.00022994,2]
[313212013,1706956232613,-500.0,0.00022994,2]
[313212014,1706956232622,-500.0,0.00022994,2]
[313212015,1706956232632,-501.81,0.00022994,2]
[313212016,1706956232641,-252.31470807,0.00022994,2]
[313212017,1706956232651,-1634.88,0.00022994,2]
[313212018,1706956232660,-500.0,0.00022994,2]
[313212019,1706956232670,-500.0,0.00022994,2]
[313212020,1706956232679,-500.0,0.00022994,2]
[313212021,1706956232689,-500.0,0.00022994,2]
[313212022,1706956232698,-500.0,0.00022994,2]
[313212023,1706956232707,-500.0,0.00022994,2]
[313212024,1706956232718,-702.78,0.00022994,2]
[313212025,1706956232729,-500.0,0.00022994,2]
[313212026,1706956232739,-512.91,0.00022994,2]
[313212027,1706956232749,-500.0,0.00022994,2]
[313212028,1706956232759,-1079.88,0.00022994,2]
[313212029,1706956232770,-1181.83,0.00022994,2]
[313212030,1706956232779,-951.44,0.00022994,2]
[313212031,1706956232788,-500.0,0.00022994,2]
[313212032,1706956232799,-500.0,0.00022995,2]
[313212033,1706956232808,-500.0,0.00022995,2]
[313212034,1706956232822,-620.17,0.00022995,2]
[313212035,1706956232833,-500.0,0.00022995,2]
[313212036,1706956232843,-315.83574654,0.00022995,2]
[313212037,1706956232852,-620.46766545,0.00022995,2]
[313212038,1706956232861,-500.0,0.00022995,2]
[313212039,1706956232870,-500.0,0.00022995,2]
[313212040,1706956232880,-179.193715,0.00022995,2]
[313212041,1706956232889,-409.5931217,0.00022995,2]
[313212042,1706956232898,-500.0,0.00022995,2]
[313212043,1706956232908,-500.0,0.00022995,2]
[313212044,1706956232917,-387.8646409,0.00022995,2]
[313212045,1706956232926,-518.71,0.00022995,2]
[313212046,1706956232936,-500.0,0.00022995,2]
[313212047,1706956232945,-500.0,0.00022995,2]
[313212048,1706956232954,-500.0,0.00022995,2]
[313212049,1706956232964,-633.61,0.00022995,2]
[313212050,1706956232973,-500.0,0.00022995,2]
[313212051,1706956232983,-500.0,0.00022995,2]
[313212052,1706956232992,-821.82,0.00022995,2]
[313212053,1706956233001,-500.0,0.00022995,2]
[313212054,1706956233010,-500.0,0.00022995,2]
[313212055,1706956233020,-500.0,0.00022995,2]
[313212056,1706956233030,-500.0,0.00022995,2]
[313212057,1706956233039,-500.0,0.00022995,2]
[313212058,1706956233048,-500.0,0.00022995,2]
[313212059,1706956233058,-661.41,0.00022995,2]
[313212060,1706956233067,-500.0,0.00022995,2]
[313212061,1706956233076,-500.0,0.00022995,2]
[313212062,1706956233085,-500.0,0.00022995,2]
[313212063,1706956233098,-500.0,0.00022995,2]
[313212064,1706956233108,-2795.78,0.00022995,2]
[313212065,1706956233117,-500.0,0.00022995,2]
[313212066,1706956233127,-2115.89,0.00022995,2]
[313212067,1706956233253,-872.26,0.00022995,2]
[313212068,1706956233264,-672.65,0.00022995,2]
[313212069,1706956233274,-500.0,0.00022995,2]
[313212070,1706956233284,-500.0,0.00022995,2]
[313212071,1706956233293,-500.0,0.00022995,2]
[313212072,1706956233302,-500.0,0.00022995,2]
[313212073,1706956233312,-500.0,0.00022995,2]
[313212074,1706956233323,-500.0,0.00022995,2]
[313212075,1706956233333,-500.0,0.00022995,2]
[313212076,1706956233344,-2049.69,0.00022995,2]
[313212077,1706956233354,-500.0,0.00022995,2]
[313212078,1706956233363,-500.0,0.00022995,2]
[313212079,1706956233372,-500.0,0.00022995,2]
[313212080,1706956233381,-1015.03,0.00022995,2]
[313212081,1706956233391,-513.05,0.00022995,2]
[313212082,1706956233402,-500.0,0.00022995,2]
[313212083,1706956233411,-620.03,0.00022995,2]
[313212084,1706956233420,-500.0,0.00022995,2]
[313212085,1706956233430,-500.0,0.00022995,2]
[313212086,1706956233439,-386.28494137,0.00022995,2]
[313212087,1706956233448,-2290.54,0.00022995,2]
[313212088,1706956233456,-500.0,0.00022995,2]
[313212089,1706956233465,-500.0,0.00022995,2]
[313212090,1706956233475,-500.0,0.00022995,2]
[313212091,1706956233484,-500.0,0.00022995,2]
[313212092,1706956233494,-500.0,0.00022995,2]
[313212093,1706956233503,-500.0,0.00022995,2]
[313212094,1706956233512,-500.0,0.00022995,2]
[313212095,1706956233521,-500.0,0.00022995,2]
[313212096,1706956233531,-649.13,0.00022995,2]
[313212097,1706956233541,-767.67,0.00022995,2]
[313212098,1706956233551,-1474.05,0.00022995,2]
[313212099,1706956233560,-500.0,0.00022995,2]
[313212100,1706956233570,-500.0,0.00022995,2]
[313212101,1706956233579,-500.0,0.00022995,2]
[313212102,1706956233588,-500.0,0.00022995,2]
[313212103,1706956233597,-500.0,0.00022995,2]
[313212104,1706956233607,-500.0,0.00022995,2]
[313212105,1706956233616,-500.0,0.00022995,2]
[313212106,1706956233625,-500.0,0.00022995,2]
[313212107,1706956233635,-500.0,0.00022995,2]
[313212108,1706956233644,-500.0,0.00022995,2]
[313212109,1706956233653,-500.0,0.00022995,2]
[313212110,1706956233663,-11367.65,0.00022995,2]
[313212111,1706956233675,-522.53,0.00022995,2]
[313212112,1706956233685,-1127.59,0.00022995,2]
[313212113,1706956233695,-501.92,0.00022995,2]
[313212114,1706956233705,-770.94,0.00022995,2]
[313212115,1706956233716,-500.0,0.00022995,2]
[313212116,1706956233727,-500.0,0.00022995,2]
[313212117,1706956233738,-551.58,0.00022995,2]
[313212118,1706956233748,-500.0,0.00022995,2]
[313212119,1706956233757,-584.88,0.00022995,2]
[313212120,1706956233767,-500.0,0.00022995,2]
[313212121,1706956233777,-1420.48,0.00022995,2]
[313212122,1706956233786,-500.0,0.00022995,2]
[313212123,1706956233795,-500.0,0.00022995,2]
[313212124,1706956233804,-508.84,0.00022995,2]
[313212125,1706956233813,-500.0,0.00022995,2]
[313212126,1706956233823,-500.0,0.00022995,2]
[313212127,1706956233832,-500.0,0.00022995,2]
[313212128,1706956233841,-512.36,0.00022995,2]
[313212129,1706956233852,-500.0,0.00022995,2]
[313212130,1706956233861,-500.0,0.00022995,2]
[313212131,1706956233870,-500.0,0.00022995,2]
[313212132,1706956233879,-500.0,0.00022995,2]
[313212133,1706956233888,-516.38,0.00022995,2]
[313212134,1706956233898,-500.0,0.00022995,2]
[313212135,1706956233907,-433.08384371,0.00022995,2]
[313212136,1706956233917,-500.0,0.00022995,2]
[313212137,1706956233926,-648.45,0.00022995,2]
[313212138,1706956233936,-1000.35,0.00022995,2]
[313212139,1706956233946,-500.0,0.00022995,2]
[313212140,1706956233955,-579.62,0.00022995,2]
[313212141,1706956233965,-500.0,0.00022995,2]
[313212142,1706956233974,-500.0,0.00022995,2]
[313212143,1706956233984,-500.0,0.00022995,2]
[313212144,1706956233993,-500.0,0.00022995,2]
[313212145,1706956234004,-500.0,0.00022995,2]
[313212146,1706956234012,-11483.25,0.00022995,2]
[313212147,1706956234022,-794.32,0.00022995,2]
[313212148,1706956234031,-510.34,0.00022995,2]
[313212149,1706956234041,-500.0,0.00022995,2]
[313212150,1706956234051,-500.0,0.00022995,2]
[313212151,1706956234061,-500.0,0.00022995,2]
[313212152,1706956234071,-1661.75,0.00022995,2]
[313212153,1706956234080,-500.0,0.00022995,2]
[313212154,1706956234091,-734.13,0.00022996,2]
[313212155,1706956234104,-16112.42523041,0.00022996,2]
[313212156,1706956234115,-10590.57066083,0.00022996,2]
[313212157,1706956234125,-281.17998795,0.00022996,2]
[313212158,1706956234137,-1052.66597639,0.00022996,2]
[313212159,1706956234147,-1000.77467154,0.00022996,2]
[313212160,1706956234158,-574.86,0.00022996,2]
[313212161,1706956234167,-621.5204404,0.00022996,2]
[313212162,1706956234180,-500.3384201,0.00022996,2]
[313212163,1706956234191,-500.0,0.00022996,2]
[313212164,1706956234200,-399.94545852,0.00022996,2]
[313212165,1706956234209,-500.0,0.00022996,2]
[313212166,1706956234219,-500.0,0.00022996,2]
[313212167,1706956234228,-500.0,0.00022996,2]
[313212168,1706956234237,-500.0,0.00022996,2]
[313212169,1706956234248,-503.54182589,0.00022996,2]
[313212170,1706956234257,-851.53,0.00022996,2]
[313212171,1706956234267,-500.0,0.00022996,2]
[313212172,1706956234277,-500.0,0.00022996,2]
[313212173,1706956234287,-500.0,0.00022996,2]
[313212174,1706956234297,-655.32,0.00022996,2]
[313212175,1706956234307,-2506.34,0.00022996,2]
[313212176,1706956234317,-391.53382602,0.00022996,2]
[313212177,1706956234327,-500.0,0.00022996,2]
[313212178,1706956234337,-500.0,0.00022996,2]
[313212179,1706956234346,-500.0,0.00022996,2]
[313212180,1706956234355,-500.0,0.00022996,2]
[313212181,1706956234364,-500.0,0.00022996,2]
[313212182,1706956234373,-817.98,0.00022996,2]
[313212183,1706956234382,-669.97,0.00022996,2]
[313212184,1706956234392,-549.56,0.00022996,2]
[313212185,1706956234401,-500.0,0.00022996,2]
[313212186,1706956234410,-500.0,0.00022996,2]
[313212187,1706956234418,-500.0,0.00022996,2]
[313212188,1706956234429,-543.99,0.00022996,2]
[313212189,1706956234438,-500.0,0.00022996,2]
[313212190,1706956234447,-500.0,0.00022996,2]
[313212191,1706956234457,-572.78,0.00022996,2]
[313212192,1706956234465,-472.47990876,0.00022996,2]
[313212193,1706956234474,-500.0,0.00022996,2]
[313212194,1706956234484,-571.44,0.00022996,2]
[313212195,1706956234493,-1034.05,0.00022996,2]
[313212196,1706956234502,-500.0,0.00022997,2]
[313212197,1706956234511,-159.0865292,0.00022997,2]
[313212198,1706956234520,-591.61,0.00022997,2]
[313212199,1706956234529,-1135.65,0.00022997,2]
[313212200,1706956234538,-500.0,0.00022997,2]
[313212201,1706956234546,-500.0,0.00022997,2]
[313212202,1706956234555,-500.0,0.00022997,2]
[313212203,1706956234564,-902.01,0.00022997,2]
[313212204,1706956234573,-500.0,0.00022997,2]
[313212205,1706956234583,-155.2570975,0.00022998,2]
[313212206,1706956234592,-500.0,0.00022998,2]
[313212207,1706956234601,-1857.83876901,0.00022998,2]
[313212208,1706956234610,-1144.14179252,0.00022998,2]
[313212209,1706956234619,-4295.75574019,0.00022998,2]
[313212210,1706956234628,-13041.77329193,0.00022998,2]
[313212211,1706956234637,-232.54654319,0.00022998,2]
[313212212,1706956234646,-1259.58690738,0.00022998,2]
[313212213,1706956234655,-10529.35130976,0.00022998,2]
[313212214,1706956234664,-166.04295219,0.00022998,2]
[313212215,1706956234673,-11000.85859074,0.00022998,2]
[313212216,1706956234683,-880.78636646,0.00022998,2]
[313212217,1706956234692,-292.69809697,0.00022998,2]
[313212218,1706956234702,-1096.43,0.00022998,2]
[313212219,1706956234711,-500.0,0.00022998,2]
[313212220,1706956234721,-500.0,0.00022998,2]
[313212221,1706956234732,-500.0,0.00022998,2]
[313212222,1706956234742,-500.0,0.00022998,2]
[313212223,1706956234752,-217.20577801,0.00022999,2]
[313212224,1706956234761,-979.78014217,0.00022999,2]
[313212225,1706956234770,-274.12299522,0.00022999,2]
[313212226,1706956234779,-215.4116205,0.00022999,2]
[313212227,1706956234788,-274.12299522,0.00022999,2]
[313212228,1706956234797,-215.4116205,0.00022999,2]
[313212229,1706956234888,-215.4116205,0.00022999,2]
[313212230,1706956234897,-274.12299522,0.00022999,2]
[313212231,1706956234906,-215.4116205,0.00022999,2]
[313212232,1706956234916,-274.12299522,0.00022999,2]
[313212233,1706956234926,-215.4116205,0.00022999,2]
[313212234,1706956234935,-274.12299522,0.00022999,2]
[313212235,1706956234944,-215.4116205,0.00022999,2]
[313212236,1706956234952,-274.12299522,0.00022999,2]
[313212237,1706956234961,-244402.02857121,0.00023,3]
[313212238,1706956234976,-2091.29020676,0.00023,3]
[313212239,1706956234995,-960.61039043,0.00023,3]
[313212243,1706956238238,-500.0,0.00022994,2]
[313212244,1706956238247,-1161.95748407,0.00022995,2]
[313212600,1706956244319,-500.0,0.00022994,2]
[313212601,1706956244329,-500.0,0.00022994,2]
[313212602,1706956244338,-1418.09251593,0.00022995,2]
[313212603,1706956244347,-237.56572249,0.00022995,2]
[313212604,1706956244359,-2164.34427751,0.00022995,2]
[313212605,1706956244368,-500.0,0.00022995,2]
[313212606,1706956244377,-1050.75,0.00022996,2]
[313212607,1706956244386,-5129.77701408,0.00023,3]
[313212608,1706956244404,-420521.7698284,0.00023,3]
[313212612,1706956244972,-646.385,0.00022996,2]
[313212613,1706956245136,-2.615,0.00022996,2]
[313212614,1706956245146,-431.00709111,0.00023,3]
[313212615,1706956245193,-772.58430032,0.00023,3]
[313212645,1706956246422,-267087.49206285,0.00023,3]
[313212646,1706956246432,-34484.86307784,0.00023,2]
[313212662,1706956246792,-1240.68034666,0.00023,2]
[313212663,1706956293646,207.0,0.00022375,2]
[313212665,1706956467668,174.22,0.0002204,2]
[313212666,1706956593418,552.64,0.00021925,2]
[313212667,1706956607152,152.08,0.0002209,2]
[313212668,1706956640022,154.99,0.00020006,2]
[313212669,1706956719410,372.3745929,0.00022196,2]
[313212670,1706956777695,3855.78,0.00021935,2]
[313212671,1706956814536,182.2,0.00021935,2]
[313212672,1706956947771,2250.0,0.00022,3]
[313212673,1706956995306,174.22,0.00021917,2]
[313212674,1706957013263,1261.54,0.00021917,2]
[313212675,1706957013298,-533.90351792,0.00022649,2]
[313212676,1706957013321,-338.23569729,0.0002265,2]
[313212677,1706957013344,-216.48921933,0.00022651,2]
[313212678,1706957013366,-216.48921933,0.00022651,2]
[313212679,1706957013391,-216.48921933,0.00022651,2]
[313212680,1706957013415,-163.63844702,0.00022668,2]
[313212681,1706957013440,-163.638447,0.00022714,2]
[313212682,1706957013463,-163.638447,0.00022761,2]
[313212683,1706957013487,-734.25,0.00022762,2]
[313212684,1706957013510,-714.44,0.00022763,2]
[313212685,1706957013533,-150.0,0.00022766,2]
[313212686,1706957013556,-150.0,0.00022766,2]
[313212687,1706957013580,-18403.23187941,0.00022767,2]
[313212688,1706957013603,-3025.588173,0.00022768,2]
[313212689,1706957013626,-2500.0,0.000228,2]
[313212690,1706957013650,-163.638447,0.00022807,2]
[313212691,1706957013673,-500.0,0.00022816,2]
[313212692,1706957013695,-800.0,0.00022816,2]
[313212693,1706957013719,-265.67306675,0.00022817,2]
[313212694,1706957013744,-163.638447,0.00022854,2]
[313212695,1706957013767,-200.58850368,0.00022898,2]
[313212696,1706957013789,-18197.58733973,0.00022899,2]
[313212697,1706957013813,-594.2,0.00022899,2]
[313212698,1706957013836,-500.0,0.00022899,2]
[313212699,1706957013861,-500.0,0.00022899,2]
[313212700,1706957013884,-500.0,0.00022899,2]
[313212701,1706957013907,-622.08,0.00022899,2]
[313212702,1706957013931,-500.0,0.00022899,2]
[313212703,1706957013954,-590.09,0.00022899,2]
[313212704,1706957013978,-558.53,0.00022899,2]
[313212705,1706957014003,-500.0,0.00022899,2]
[313212706,1706957014028,-500.0,0.00022899,2]
[313212707,1706957014053,-500.0,0.00022899,2]
[313212708,1706957014076,-500.0,0.00022899,2]
[313212709,1706957014099,-500.0,0.00022899,2]
[313212710,1706957014124,-993.72,0.00022899,2]
[313212711,1706957014150,-500.0,0.00022899,2]
[313212712,1706957014173,-1080.6,0.00022899,2]
[313212713,1706957014197,-500.0,0.00022899,2]
[313212714,1706957014221,-528.6,0.00022899,2]
[313212715,1706957014245,-569.56,0.00022899,2]
[313212716,1706957014269,-500.0,0.00022899,2]
[313212717,1706957014292,-737.8,0.00022899,2]
[313212718,1706957014317,-1361.3,0.00022899,2]
[313212719,1706957014344,-500.0,0.00022899,2]
[313212720,1706957014368,-500.0,0.00022899,2]
[313212721,1706957014393,-500.0,0.00022899,2]
[313212722,1706957014419,-500.0,0.00022899,2]
[313212723,1706957014443,-500.0,0.00022899,2]
[313212724,1706957014468,-500.0,0.00022899,2]
[313212725,1706957014493,-500.0,0.00022899,2]
[313212726,1706957014517,-500.0,0.00022899,7]
[313212727,1706957014543,-673.49,0.00022899,2]
[313212728,1706957014568,-621.43,0.00022899,2]
[313212729,1706957014592,-500.0,0.00022899,2]
[313212730,1706957014615,-1566.76,0.00022899,2]
[313212731,1706957014639,-500.0,0.00022899,2]
[313212732,1706957014663,-500.0,0.00022899,2]
[313212733,1706957014687,-500.0,0.00022899,2]
[313212734,1706957014713,-500.0,0.00022899,2]
[313212735,1706957014739,-1034.89,0.00022899,2]
[313212736,1706957014763,-500.0,0.00022899,2]
[313212737,1706957014788,-500.0,0.00022899,2]
[313212738,1706957014812,-500.0,0.00022899,2]
[313212739,1706957014836,-500.0,0.00022899,2]
[313212740,1706957014961,-500.0,0.00022899,2]
[313212741,1706957014986,-500.0,0.00022899,2]
[313212742,1706957015011,-500.0,0.00022899,2]
[313212743,1706957015035,-633.85,0.00022899,2]
[313212744,1706957015060,-500.0,0.00022899,2]
[313212745,1706957015085,-200.86158265,0.00022899,2]
[313212746,1706957015111,-601.08034656,0.00022899,2]
[313212747,1706957023257,557.88,0.00022113,2]
[313212748,1706957045665,154.99,0.00020188,2]
[313212749,1706957049905,1268.36690221,0.00022196,2]
[313212750,1706957155542,1243.26452789,0.00022196,2]
[313212751,1706957164583,155.86271868,0.00022196,2]
[313212752,1706957349318,-338.23569729,0.00022782,2]
[313212753,1706957349346,-518.53568055,0.00022783,2]
[313212754,1706957349373,-533.90351792,0.00022783,2]
[313212755,1706957349400,-890.31282962,0.0002279,4]
[313212756,1706957349431,-8503.4,0.00022798,2]
[313212757,1706957349461,-232.46393345,0.00022799,2]
[313212758,1706957349489,-1000.0,0.000228,2]
[313212759,1706957349517,-13925.3753,0.000228,2]
[313212760,1706957349545,-2500.0,0.000228,2]
[313212761,1706957349573,-1368.01722882,0.00022879,2]
[313212762,1706957349601,-43409.75581235,0.0002288,2]
[313212763,1706957379856,1359.57833683,0.00022196,2]
[313212764,1706957410568,500.0,0.000219,2]
[313212789,1706957432331,-533.90351792,0.00022879,2]
[313212791,1706957432341,-2017.28897322,0.0002288,2]
[313212793,1706957432352,-81875.02165,0.0002288,2]
[313212797,1706957432387,-3169.11946523,0.0002288,2]
[313212798,1706957432399,-741.09442376,0.0002288,2]
[313212801,1706957432447,-647.01902969,0.0002288,2]
[313212802,1706957432458,-1731.90627148,0.0002288,2]
[313212803,1706957432503,-5194.0490114,0.0002288,2]
[313212804,1706957432514,-517.9614323,0.0002288,2]
[313212828,1706957438309,-163.638447,0.00022797,2]
[313212829,1706957438319,-688.401553,0.0002288,2]
[313212830,1706957438474,-1840.49182333,0.0002288,2]
[313212834,1706957439189,-3956.37270768,0.0002288,2]
[313212835,1706957439208,-353.24821662,0.0002288,2]
[313212836,1706957439219,-297.24781902,0.0002288,2]
[313212837,1706957439235,-1731.15056648,0.0002288,2]
[313212838,1706957439245,-948.222,0.0002288,2]
[313212840,1706957440857,-555.21,0.0002288,2]
[313212854,1706957443323,-323.78429081,0.0002288,2]
[313212855,1706957443334,-515.52820213,0.0002288,2]
[313212856,1706957443379,-810.5932,0.0002288,2]
[313212857,1706957443489,-58499.93857584,0.0002288,2]
[313212858,1706957443501,-7560.56003237,0.0002288,2]
[313212859,1706957443511,-2677.69212224,0.00022897,2]
[313212860,1706957443545,-331.69091334,0.00022897,2]
[313212861,1706957443556,-986.06827491,0.00022897,2]
[313212862,1706957443608,-10975.39934671,0.00022897,2]
[313212864,1706957443620,-119.13241162,0.00022897,2]
[313212866,1706957443737,-5766.14562117,0.00022897,2]
[313212867,1706957443747,-337.23779249,0.00022897,2]
[313212868,1706957443757,-849.42568741,0.00022897,2]
[313212869,1706957443766,-518.23197599,0.00022897,2]
[313212870,1706957443775,-495.98439808,0.00022898,2]
[313212871,1706957443785,-492.42544555,0.00022898,2]
[313212872,1706957443795,-413.39356249,0.00022898,2]
[313212873,1706957443805,-308.85160111,0.00022898,2]
[313212875,1706957446338,-689.63325256,0.00022898,2]
[313212876,1706957446398,-2339.89165256,0.00022898,2]
[313212877,1706957446408,-224.85530043,0.00022898,2]
[313212878,1706957446417,-155.0,0.00022898,2]
[313212879,1706957446427,-2909.36169139,0.00022898,2]
[313212880,1706957446436,-1688.84387781,0.00022898,2]
[313212881,1706957446446,-243.00714897,0.00022898,2]
[313212882,1706957446455,-4476.66229822,0.00022898,2]
[313212883,1706957446470,-680.22227264,0.00022898,2]
[313212884,1706957446485,-348.77523253,0.00022898,2]
[313212885,1706957446497,-974.99606205,0.00022898,2]